Cogmind - Beta 12 *** ADVENTURER MODE // 2023.11.09 @ 22:59:34 // Winter2019/RPGLIKE Player: Noname Result: Destroyed by P-80 Master with Gamma Rifle Performance ------------- Evolutions (8) 4000 Regions Visited (27) 5400 Robots Destroyed (546) 2730 Value Destroyed (29951) 29951 Prototype IDs (85) 1700 Alien Tech Used (6) 1200 Bonus (5081) 5081 TOTAL SCORE: 50062 Bonus ------- High Alert Combat Kills 2180 Follower Combat Kills 1542 Entered DSFs 500 Met Imprinter 300 Met Zhirov 300 A7 Reached Mainframe 300 Met R17 at Cetus 500 Friendly Fire -541 Cogmind --------- Core Integrity 0/1050 Matter 325/400 Energy 820/820 System Corruption 1% Temperature Cool (0) Movement Walking (120) Location -2/Section 7 Parts ------- > --- POWER (3) -------- Graviton Reactor Graviton Reactor Graviton Reactor > --- PROPULSION (6) --- Centrium Leg Centrium Leg Centrium Leg Centrium Leg High-density Centrium Leg High-density Centrium Leg > --- UTILITY (10) ----- Experimental Cooling System Experimental Sensor Array (fused) Advanced Signal Interpreter Improved Armor Integrity Analyzer Precision Matter Filter Advanced Weapon Cycler Advanced Phase Shifter Centrium Medium Armor Plating System Mapper Advanced System Shield > --- WEAPON (5) ------- Enhanced Quantum Rifle Enhanced Quantum Rifle Advanced KE Penetrator Advanced KE Penetrator Hypervelocity Multirail > --- INVENTORY (9) ---- Advanced Trap Scanner Experimental Core Analyzer Advanced Kinecellerator Advanced Transmission Jammer Centrium Medium Armor Plating Advanced Thermal Shield Improved Dynamic Insulation System Advanced System Restoration Module Advanced KE Penetrator Peak State ------------ > --- POWER ------------ Graviton Reactor Matter Drive > --- PROPULSION ------- Centrium Leg Centrium Leg Centrium Leg Centrium Leg High-density Centrium Leg High-density Centrium Leg > --- UTILITY ---------- Experimental Cooling System Experimental Sensor Array Advanced Signal Interpreter Improved Armor Integrity Analyzer Precision Matter Filter Advanced Weapon Cycler Advanced Phase Shifter Centrium Medium Armor Plating System Mapper Advanced System Shield > --- WEAPON ----------- Enhanced Quantum Rifle Enhanced Quantum Rifle Advanced KE Penetrator Advanced KE Penetrator Hypervelocity Multirail > --- INVENTORY -------- Advanced Trap Scanner Experimental Core Analyzer Advanced Kinecellerator Advanced Transmission Jammer Centrium Medium Armor Plating Advanced Thermal Shield Improved Dynamic Insulation System Advanced System Restoration Module Advanced KE Penetrator [Rating: 223] Favorites ----------- Power Quantum Reactor Engine Cooled Ion Engine Power Core Reinforced Fission Core Reactor Quantum Reactor Propulsion Flexi-carbon Leg Treads Centrium Heavy Treads Leg Flexi-carbon Leg Wheel Armored Wheel Utility Experimental Sensor Array Device Experimental Sensor Array Processor Advanced Signal Interpreter Hackware Makeshift System Shield Protection Centrium Medium Armor Plating Artifact Spacefold Activator Weapon Advanced KE Penetrator Energy Gun Enhanced Quantum Rifle Energy Cannon Compact Ion Cannon Ballistic Gun Advanced KE Penetrator Launcher Grenade Launcher Slashing Weapon Power Sword Piercing Weapon Spear Special Melee Weapon Advanced Datajack Build | -11 -10 -10 -9 -9 -8 -7 -7 -6 -6 -6 -6 -5 -5 -5 -5 -5 -5 -4 -4 -4 -4 -3 -3 -3 -2 -2 -2 ------- Run | Jun Mat Min Mat Min Mat Fac DSF Fac Low Low Zio Pro Fac Ext Cet Arc Hub Fac Upp Upp Zhi Pro Res Tes Res Qua Sec Slots Evolved 20 | 4 . . 3 . 2 1 . 3 1 . . 2 . 1 1 . . . . . . . . 1 1 . . Power 2 | . . . . . . . . 1 . . . . . . 1 . . . . . . . . . . . . Propulsion 5 | 1 . . . . . . . 1 . . . 1 . . . . . . . . . . . 1 1 . . Utility 9 | 3 . . 2 . 2 1 . 1 . . . . . . . . . . . . . . . . . . . Weapon 4 | . . . 1 . . . . . 1 . . 1 . 1 . . . . . . . . . . . . . Parts Attached 433 | 2 7 5 10 3 8 1 7 59 13 12 20 11 22 9 20 3 6 61 4 5 6 2 17 22 47 16 35 Power 29 | . . . 1 . . . . 2 . 1 2 2 2 1 3 . . . . 2 2 . . 3 2 . 6 Engine 7 | . . . 1 . . . . 2 . 1 2 1 . . . . . . . . . . . . . . . Core 4 | . . . . . . . . . . . . 1 2 1 . . . . . . . . . . . . . Reactor 18 | . . . . . . . . . . . . . . . 3 . . . . 2 2 . . 3 2 . 6 Propulsion 40 | 2 1 . 2 . 2 . 1 8 2 . 3 . 2 . 3 . . . . . . . . 1 9 2 2 Treads 4 | . . . . . . . . 1 . . . . . . 3 . . . . . . . . . . . . Leg 30 | . . . . . 2 . 1 6 2 . 3 . 2 . . . . . . . . . . 1 9 2 2 Wheel 6 | 2 1 . 2 . . . . 1 . . . . . . . . . . . . . . . . . . . Hover . | . . . . . . . . . . . . . . . . . . . . . . . . . . . . Flight . | . . . . . . . . . . . . . . . . . . . . . . . . . . . . Utility 259 | . 5 1 2 3 5 1 4 13 5 7 11 8 11 7 9 1 5 48 4 3 4 . 17 14 32 13 26 Device 208 | . 2 1 2 2 2 . 2 9 5 7 8 6 9 6 6 . 3 42 2 2 2 . 17 12 29 11 21 Storage . | . . . . . . . . . . . . . . . . . . . . . . . . . . . . Processor 13 | . 2 . . . 3 . . 1 . . . 1 . . . . . 3 . 1 . . . 1 1 . . Hackware 7 | . . . . . . . . 1 . . . . 2 . . . . 1 1 . 1 . . 1 . . . Protection 30 | . 1 . . 1 . 1 2 2 . . 3 1 . 1 3 1 2 2 1 . 1 . . . 2 2 4 Artifact 1 | . . . . . . . . . . . . . . . . . . . . . . . . . . . 1 Weapon 105 | . 1 4 5 . 1 . 2 36 6 4 4 1 7 1 5 2 1 13 . . . 2 . 4 4 1 1 Energy Gun 34 | . . . 4 . 1 . 1 8 . . . . 4 . 1 1 1 7 . . . 1 . 2 3 . . Energy Cannon 12 | . . . 1 . . . 1 5 1 2 1 . . . . . . . . . . . . 1 . . . Ballistic Gun 38 | . 1 2 . . . . . 13 3 . 2 . 3 1 4 1 . 3 . . . 1 . 1 1 1 1 Ballistic Cannon . | . . . . . . . . . . . . . . . . . . . . . . . . . . . . Launcher 5 | . . 2 . . . . . 1 1 1 . . . . . . . . . . . . . . . . . Special Weapon . | . . . . . . . . . . . . . . . . . . . . . . . . . . . . Impact Weapon . | . . . . . . . . . . . . . . . . . . . . . . . . . . . . Slashing Weapon 4 | . . . . . . . . . 1 1 1 1 . . . . . . . . . . . . . . . Piercing Weapon 9 | . . . . . . . . 9 . . . . . . . . . . . . . . . . . . . Special Melee Weapon 3 | . . . . . . . . . . . . . . . . . . 3 . . . . . . . . . Unidentified Prototypes 44 | . . . 3 1 . . 2 3 . . 1 1 2 . 4 . 1 5 . . 3 . 1 4 3 1 9 Corrupted Parts 5 | . . . . . . . . . . . . . . . 5 . . . . . . . . . . . . System Corruption 24 | . . . . . . . . . . . . . . . 24 . . . . . . . . . . . . Parts Lost 4 | . . . . . . . . . . 1 . . 1 . . . 1 . . . . . . . . . 1 Power 1 | . . . . . . . . . . . . . . . . . . . . . . . . . . . 1 Propulsion . | . . . . . . . . . . . . . . . . . . . . . . . . . . . . Utility 2 | . . . . . . . . . . 1 . . 1 . . . . . . . . . . . . . . Weapon 1 | . . . . . . . . . . . . . . . . . 1 . . . . . . . . . . Highest Loss Streak 1 | . . . . . . . . . . 1 . . 1 . . . 1 . . . . . . . . . 1 To Critical Strikes . | . . . . . . . . . . . . . . . . . . . . . . . . . . . . Average Slot Usage (%) 92 | . 85 100 93 100 99 94 91 92 93 95 92 92 99 100 91 90 90 89 90 90 89 89 90 89 92 100 99 Engine 3 | . 12 12 9 9 7 7 7 11 11 11 10 8 . . . . . . . . . . . . . . . Reactor 7 | . . . . . . . . . . . . . . . 8 13 13 13 13 13 12 13 13 13 12 12 11 Treads 4 | . . . . . . . . . . . . . . . 7 9 9 9 9 9 9 9 9 8 5 . . Leg 8 | . . . . . 8 14 11 15 16 16 15 15 19 19 3 . . . . . . . . . 10 25 25 Wheel 1 | . 25 25 19 18 6 . . . . . . . . . . . . . . . . . . . . . . Device 27 | . 14 34 37 38 34 28 30 26 28 29 32 30 32 37 28 27 27 27 27 27 26 27 27 21 23 24 23 Processor 8 | . 16 14 9 9 18 21 18 11 11 11 5 7 8 4 4 4 4 4 4 6 9 9 9 8 8 8 8 Hackware 5 | . . . . . . . . 3 5 5 5 5 7 4 4 4 4 8 9 6 4 4 4 8 8 8 8 Protection 4 | . 4 . . 6 7 7 9 7 5 3 3 5 . 2 8 9 9 4 3 4 3 4 4 4 1 . . Energy Gun 6 | . 11 . 6 9 7 7 6 1 . . . . 4 9 9 9 9 8 9 9 9 8 9 8 7 8 8 Ballistic Gun 11 | . . 10 9 9 7 7 7 6 10 11 10 10 13 10 13 13 13 13 13 13 13 13 13 13 12 12 11 Naked Turns . | . . . . . . . . . . . . . . . . . . . . . . . . . . . . Heaviest Build 134 | 5 7 10 21 23 28 26 64 76 77 81 63 75 75 104 133 134 134 132 110 123 111 110 110 110 97 94 100 Greatest Support 184 | 26 26 26 26 24 34 34 34 60 60 60 60 60 80 76 160 160 160 160 160 160 160 160 160 160 179 184 184 Greatest Overweight (x) 11 | . . . . . 1 . 1 3 1 1 11 1 1 1 1 . . . . . . . . . 2 . . Average Overweight (x) . | . . . . . . . . 1 1 . . . . . . . . . . . . . . . . . . Largest Inventory Capacity 9 | 2 2 2 3 3 4 4 5 6 6 6 6 6 6 6 6 6 7 7 7 7 8 8 9 9 9 9 9 Average Capacity 6 | 2 2 2 2 3 3 4 4 5 6 6 6 6 6 6 6 6 6 7 7 7 7 8 8 9 9 9 9 Most Carried 9 | 2 2 2 3 3 4 4 5 6 6 6 6 6 6 6 6 6 7 7 7 7 8 8 9 9 9 9 9 Average Carried 6 | 1 1 2 2 3 3 4 3 5 5 4 5 5 5 5 5 6 6 6 7 6 7 8 8 8 8 9 9 Final Capacity 9 | 2 2 2 3 3 4 4 5 6 6 6 6 6 6 6 6 6 7 7 7 7 8 8 9 9 9 9 9 Final Carried 9 | 2 2 2 3 3 4 4 4 6 5 6 6 6 6 6 6 6 7 7 7 7 8 8 9 9 9 9 9 Class Distribution -------------------- 26% | Hacker-Gunner 22% | Scavenger-Gunner 13% | Hacker-Skirmisher 11% | Wizard-Gunner 9% | Scavenger-Mutant 5% | Hacker-Assassin 3% | Scavenger-Tank Dominant Class ---------------- Mutant | -10/Materials Scavenger-Mutant | -10/Mines Scavenger-Skirmisher | -9/Materials Scavenger-Skirmisher | -9/Mines Scavenger-Skirmisher | -8/Materials Hacker-Skirmisher | -7/Factory Hacker-Skirmisher | -7/DSF Hacker-Skirmisher | -6/Factory Hacker-Skirmisher | -6/Lower Caves Hacker-Gunner | -6/Lower Caves Hacker-Gunner | -6/Zion Hacker-Gunner | -5/Proximity Caves Hacker-Gunner | -5/Factory Hacker-Gunner | -5/Extension Scavenger-Gunner | -5/Cetus Scavenger-Tank | -5/Archives Scavenger-Tank | -5/Hub_04(d) Scavenger-Gunner | -4/Factory Hacker-Gunner | -4/Upper Caves Hacker-Gunner | -4/Upper Caves Scavenger-Gunner | -4/Zhirov Scavenger-Gunner | -3/Proximity Caves Scavenger-Gunner | -3/Research Wizard-Gunner | -3/Testing Wizard-Gunner | -2/Research Wizard-Gunner | -2/Quarantine Wizard-Gunner | -2/Section 7 Resources | -11 -10 -10 -9 -9 -8 -7 -7 -6 -6 -6 -6 -5 -5 -5 -5 -5 -5 -4 -4 -4 -4 -3 -3 -3 -2 -2 -2 ----------- Run | Jun Mat Min Mat Min Mat Fac DSF Fac Low Low Zio Pro Fac Ext Cet Arc Hub Fac Upp Upp Zhi Pro Res Tes Res Qua Sec Matter Collected 11233 | 220 50 141 166 60 122 . 179 1239 920 578 83 757 471 278 388 127 313 1557 140 158 . 336 512 278 1086 531 543 Remotely 126 | . . . 102 24 . . . . . . . . . . . . . . . . . . . . . . . Salvage Created 28731 | . 289 89 123 173 315 . 434 1325 451 1068 . 823 871 986 534 227 805 3031 414 481 . 1259 2777 1076 4437 2762 3981 Parts 1620 | . 21 8 10 11 22 . 24 124 48 44 . 54 49 70 30 14 42 178 25 47 . 72 173 65 243 91 155 Haulers Intercepted 1 | . . . . . . . . . . . . 1 . . . . . . . . . . . . . . . Recyclers Shooed 3 | . 1 . . . . . . . . . . . . . . . . . . . . . . . 1 1 . Parts Field Recycled . | . . . . . . . . . . . . . . . . . . . . . . . . . . . . Retrieved Matter . | . . . . . . . . . . . . . . . . . . . . . . . . . . . . Parts Self-Destructed 316 | . . . . . . . . . 54 40 . 52 . . . . . . 39 52 . 79 . . . . . Prevented 1 | . . . . . . . . . . 1 . . . . . . . . . . . . . . . . . Kills | -11 -10 -10 -9 -9 -8 -7 -7 -6 -6 -6 -6 -5 -5 -5 -5 -5 -5 -4 -4 -4 -4 -3 -3 -3 -2 -2 -2 ------- Run | Jun Mat Min Mat Min Mat Fac DSF Fac Low Low Zio Pro Fac Ext Cet Arc Hub Fac Upp Upp Zhi Pro Res Tes Res Qua Sec Combat Hostiles Destroyed 436 | . 7 7 3 7 5 . 10 34 15 14 . 17 10 16 12 4 9 53 10 16 . 27 36 17 48 24 35 Guns 418 | . 6 3 3 7 5 . 10 32 14 9 . 13 10 16 12 4 9 52 10 16 . 27 36 17 48 24 35 Cannons 9 | . . . . . . . . 2 1 3 . 3 . . . . . . . . . . . . . . . AOE 8 | . 1 4 . . . . . . . 2 . . . . . . . 1 . . . . . . . . . Classes Destroyed 26 | . 4 . . . 2 . 2 7 1 . . 2 . . 1 . . 1 1 . . . . . 1 2 2 Worker 15 | . . . . . . . . 1 . . . . 1 . . . . . . . . . 2 . 7 . 4 Builder 17 | . 1 . . . . . . . . . . . 2 1 . . . . . . . . 1 1 9 . 2 Tunneler 1 | . . . . . . . . . . . . . . . . . . 1 . . . . . . . . . Hauler 1 | . . . . . . . . . . . . 1 . . . . . . . . . . . . . . . Recycler 17 | . . . . . 1 . . . . . . . 1 1 . . . 1 . . . . 1 2 5 2 3 Carrier 4 | . . . . . . . . . . . . . . . 1 . . . . . . 1 . . . 1 1 Mechanic 2 | . . . . . . . . 1 . . . . . . . . . . . . . . . . . 1 . Operator 4 | . . . . . . . . 1 . . . . . . . . 1 1 . . . . . . . . 1 Watcher 49 | . 2 . 3 . 1 . . 4 . . . . 6 2 1 . 3 5 . . . . 7 1 8 2 4 Swarmer 83 | . 3 5 1 4 . . 4 13 5 5 . . 4 6 3 . . 4 2 6 . 13 5 . . . . Cutter 3 | . . . . . . . . . . . . . . . . . . . . . . . . . 3 . . Saboteur 1 | . . . . . . . . . . . . . . . . . . . . . . . . . . 1 . Grunt 141 | . 4 2 2 3 3 . 2 10 4 3 . 9 3 2 3 . 3 18 6 6 . 9 9 4 20 10 6 Brawler 8 | . . . . . . . . 1 . . . 3 . . 1 . . . . . . . 2 . 1 . . Duelist 7 | . . . . . . . . 2 2 . . . . . . . 1 . . . . . . . . 2 . Protector 1 | . . . . . . . . . . . . 1 . . . . . . . . . . . . . . . Sentry 39 | . . . . . 2 . 1 1 2 1 . 2 1 5 . 4 1 5 . 3 . 3 4 . 1 . 3 Specialist 4 | . . . . . . . 2 . . . . . . . . . 2 . . . . . . . . . . Hunter 39 | . . . . . . . . 1 1 2 . 2 1 2 . . . 8 . 1 . 2 . 5 . 5 9 Programmer 94 | . . . . . . . . 6 . 2 . . 1 . . . 2 18 1 . . . 16 8 22 5 13 Heavy 1 | . . . . . . . 1 . . . . . . . . . . . . . . . . . . . . Behemoth 4 | . . . . . . . . . 1 1 . . . 1 . . . . . . . . . . 1 . . Cetus Guard 5 | . . . . . . . . . . . . . . . 5 . . . . . . . . . . . . Executioner 3 | . . . . . . . . . . . . . . . . . . . . . . . . . . . 3 Alpha 7 1 | . . . . . . . . . . . . . . . . . . . . . . . . . . . 1 Fortress 1 | . . . . . . . . . . . . . . . . . . . . . . . . . . 1 . Savage 1 | . . . . . . . . . . 1 . . . . . . . . . . . . . . . . . Butcher 1 | . . . . . . . . . . . . . . 1 . . . . . . . . . . . . . Mutant 1 | . . . . . . . . . . . . . . . . . . . 1 . . . . . . . . Best Kill Streak 17 | . 4 2 2 4 5 . 4 6 4 5 . 7 5 4 6 4 4 4 4 7 . 6 5 4 17 7 9 Combat Bots Only 10 | . 3 2 1 4 4 . 4 4 4 5 . 7 4 3 5 4 4 4 4 7 . 6 3 3 10 6 7 Max Kills in Single Turn 4 | . 2 2 1 1 2 . 1 2 2 2 . 2 2 2 3 1 2 3 2 2 . 1 3 2 3 2 4 Gunslinging 2 | . . . . . . . . . . . . . . . 1 . 1 2 1 1 . . 1 . 1 1 1 Exploded 2 | . 1 2 . . . . . . . 2 . . . . . . . 1 . . . . . . . . . Melee . | . . . . . . . . . . . . . . . . . . . . . . . . . . . . Uniques/NPCs Destroyed . | . . . . . . . . . . . . . . . . . . . . . . . . . . . . Combat | -11 -10 -10 -9 -9 -8 -7 -7 -6 -6 -6 -6 -5 -5 -5 -5 -5 -5 -4 -4 -4 -4 -3 -3 -3 -2 -2 -2 -------- Run | Jun Mat Min Mat Min Mat Fac DSF Fac Low Low Zio Pro Fac Ext Cet Arc Hub Fac Upp Upp Zhi Pro Res Tes Res Qua Sec Damage Taken 17223 | . 279 129 33 53 88 . 973 1642 1568 821 . 625 257 894 280 83 130 1575 332 216 . 548 1170 890 1719 1211 1707 Core 12231 | . 226 101 32 39 63 . 715 955 931 507 . 397 199 675 181 63 81 1117 247 146 . 399 835 635 1366 975 1346 Absorbed by Shields 723 | . . . 2 21 34 . 88 . . . . . . 71 287 87 133 . . . . . . . . . . Reduced by Siege Mode 8 | . . . . . . . . . . . . . . . . . 2 2 . . . . . . 4 . . Redirected to Core 10703 | . 174 85 4 35 37 . 494 781 880 455 . 347 186 626 181 54 73 1031 186 132 . 365 781 586 1191 817 1202 Core Remaining (%) 93 | 100 . 93 . 100 100 . 51 . . . . 100 . . . . 95 . . . . 100 . 100 . . . Volleys Fired 1089 | . 35 12 22 10 14 . 33 104 64 43 8 47 45 43 32 8 20 146 21 18 . 41 77 36 91 57 62 Largest 5 | . 1 1 2 2 2 . 2 2 3 3 1 3 4 4 5 5 5 5 5 5 . 5 5 5 5 5 5 Hottest 279 | . 40 33 89 89 108 . 108 133 156 156 90 156 225 216 253 279 279 279 235 235 . 235 235 250 250 250 250 Shots Fired 3362 | . 35 12 33 20 28 . 52 201 143 117 8 139 123 134 117 32 83 404 78 90 . 183 303 140 367 253 267 Gun 3230 | . 35 7 33 20 28 . 52 175 128 84 . 94 123 134 117 32 83 404 78 90 . 183 303 140 367 253 267 Cannon 126 | . . . . . . . . 26 15 32 8 45 . . . . . . . . . . . . . . . Launcher 6 | . . 5 . . . . . . . 1 . . . . . . . . . . . . . . . . . Special . | . . . . . . . . . . . . . . . . . . . . . . . . . . . . Kinetic 2146 | . . 7 22 10 14 . 33 159 128 84 . 94 77 86 95 24 58 241 45 54 . 123 171 78 216 159 168 Thermal 1175 | . . . 11 10 14 . 19 42 15 32 8 45 46 48 22 8 25 163 33 36 . 60 132 62 151 94 99 Explosive 5 | . . 5 . . . . . . . . . . . . . . . . . . . . . . . . . Electromagnetic 36 | . 35 . . . . . . . . 1 . . . . . . . . . . . . . . . . . Robot Hit Streak 62 | . 11 4 6 9 13 . 22 34 60 37 . 46 37 51 40 53 24 57 41 23 . 29 47 44 58 35 62 Robot Miss Streak 3 | . 1 2 2 1 1 . 1 2 1 1 . 1 1 1 1 1 1 3 2 1 . 1 1 1 2 2 1 Penetration Max 4 | . . . . . . . . 2 2 2 . 2 2 1 1 . 1 1 1 . . 1 1 1 4 1 2 Secondary Targets 80 | . . . . 2 . . 3 7 3 . . . 1 4 6 . 2 12 7 2 . 7 4 2 9 2 7 Max Gunslinging Chain 2 | . . . . 1 . . 1 1 1 . . . 1 1 1 . 1 2 2 1 . 1 1 1 1 1 1 Shots Hit Robots 2533 | . 29 8 25 15 23 . 46 160 134 99 . 112 84 111 106 25 59 255 58 57 . 122 209 98 282 212 204 Core Hits 1226 | . 18 11 7 9 12 . 16 92 48 36 . 55 44 45 39 12 21 118 24 29 . 49 89 40 155 125 132 Critical Kills 198 | . . . . . 1 . 1 23 10 9 . 11 4 . 4 1 2 13 1 2 . 8 13 6 39 21 29 Critical Parts Destroyed 298 | . . . . . . . . 20 19 20 . 15 10 2 5 . 4 22 2 2 . 10 17 10 59 30 51 Critical Strikes 530 | . . . . . 3 . 2 44 32 33 . 27 15 2 10 1 7 35 3 6 . 18 31 16 99 63 83 Burn 4 | . . . . . 2 . 1 1 . . . . . . . . . . . . . . . . . . . Meltdown 1 | . . . . . . . . . . . . 1 . . . . . . . . . . . . . . . Destroy 523 | . . . . . 1 . 1 43 31 33 . 26 14 2 10 1 7 35 3 6 . 18 31 16 99 63 83 Sever 1 | . . . . . . . . . . . . . 1 . . . . . . . . . . . . . . Impale 1 | . . . . . . . . . 1 . . . . . . . . . . . . . . . . . . Melee Attacks 46 | . . . . . . . . 22 3 1 16 . 3 . . . . 1 . . . . . . . . . Impact . | . . . . . . . . . . . . . . . . . . . . . . . . . . . . Slashing 20 | . . . . . . . . . . 1 16 . 3 . . . . . . . . . . . . . . Piercing 25 | . . . . . . . . 22 3 . . . . . . . . . . . . . . . . . . Sneak Attacks 1 | . . . . . . . . . . . . . . . . . . 1 . . . . . . . . . Combat Hostiles . | . . . . . . . . . . . . . . . . . . . . . . . . . . . . Follow-up Attacks . | . . . . . . . . . . . . . . . . . . . . . . . . . . . . Damage Inflicted 70563 | . 570 399 528 254 501 . 969 2023 1440 1516 . 1797 2003 2843 2716 728 1890 8839 1979 1884 . 3535 7802 4170 10341 5002 6834 Guns 66124 | . 413 94 528 254 501 . 969 1337 840 548 . 586 1927 2843 2716 728 1890 8403 1979 1884 . 3535 7802 4170 10341 5002 6834 Cannons 3207 | . . . . . . . . 686 426 884 . 1211 . . . . . . . . . . . . . . . Explosions 982 | . 157 305 . . . . . . . 84 . . . . . . . 436 . . . . . . . . . Melee 250 | . . . . . . . . . 174 . . . 76 . . . . . . . . . . . . . . Ramming . | . . . . . . . . . . . . . . . . . . . . . . . . . . . . Kinetic 38623 | . . 94 411 168 250 . 614 1015 840 548 . 586 1254 1796 2229 543 1183 5136 997 788 . 2066 3949 2009 5249 3018 3880 Thermal 30680 | . 112 . 117 86 251 . 355 1008 426 884 . 1211 673 1047 487 185 707 3540 982 1096 . 1469 3853 2161 5092 1984 2954 Explosive 468 | . . 305 . . . . . . . . . . . . . . . 163 . . . . . . . . . Electromagnetic 542 | . 458 . . . . . . . . 84 . . . . . . . . . . . . . . . . . Impact . | . . . . . . . . . . . . . . . . . . . . . . . . . . . . Slashing 76 | . . . . . . . . . . . . . 76 . . . . . . . . . . . . . . Piercing 174 | . . . . . . . . . 174 . . . . . . . . . . . . . . . . . . Highest Corruption 18 | . 1 1 . . . . . 2 . 1 . . . . 18 8 9 2 1 . . . . 1 1 1 1 Average Corruption 4 | . 1 1 . . . . . 1 . 1 . . . . 8 8 8 1 1 . . . . 1 1 1 1 Corruption Purged 27 | . . . . . . . . 3 . 1 . . . . 16 . . 2 1 . . . . 2 1 1 . Corruption Blocked 45 | . . . . . . . . . . . . . . . . . . 25 . . . . . . . . 20 Effects 81 | . 3 4 . . . . . 1 . 1 . . . . 23 12 26 4 . . . . . 4 3 . . Message Errors 19 | . 2 1 . . . . . . . . . . . . 5 3 6 2 . . . . . . . . . Matter Fused 15 | . . . . . . . . . . 1 . . . . 6 1 5 1 . . . . . . 1 . . Heat Flow Errors 12 | . . 1 . . . . . . . . . . . . 7 1 2 . . . . . . . 1 . . Energy Discharges 11 | . . 1 . . . . . 1 . . . . . . . 2 3 1 . . . . . 2 1 . . Parts Fused 4 | . . . . . . . . . . . . . . . . 2 2 . . . . . . . . . . Data Loss (minor) 10 | . 1 . . . . . . . . . . . . . 3 1 5 . . . . . . . . . . Data Loss (major) 3 | . . 1 . . . . . . . . . . . . 1 . . . . . . . . 1 . . . Misfires 2 | . . . . . . . . . . . . . . . 1 1 . . . . . . . . . . . Alerts 1 | . . . . . . . . . . . . . . . . . . . . . . . . 1 . . . Weapon Failures 4 | . . . . . . . . . . . . . . . . 1 3 . . . . . . . . . . Overload Shots 5 | . . . . . . . . . . . . . 3 . . . . 2 . . . . . . . . . Overflow Damage 256 | . . . . . . . . . 81 2 . 35 . . . . . 138 . . . . . . . . . Projectiles 35 | . . . . . . . . . . . . 35 . . . . . . . . . . . . . . . Explosions 140 | . . . . . . . . . . 2 . . . . . . . 138 . . . . . . . . . Melee 81 | . . . . . . . . . 81 . . . . . . . . . . . . . . . . . . Knockbacks . | . . . . . . . . . . . . . . . . . . . . . . . . . . . . Impact . | . . . . . . . . . . . . . . . . . . . . . . . . . . . . Kinetic . | . . . . . . . . . . . . . . . . . . . . . . . . . . . . Secondary . | . . . . . . . . . . . . . . . . . . . . . . . . . . . . Self-Inflicted Damage 103 | . 60 43 . . . . . . . . . . . . . . . . . . . . . . . . . Shots 4 | . 2 2 . . . . . . . . . . . . . . . . . . . . . . . . . Rammed . | . . . . . . . . . . . . . . . . . . . . . . . . . . . . Targets Rammed . | . . . . . . . . . . . . . . . . . . . . . . . . . . . . Kicked . | . . . . . . . . . . . . . . . . . . . . . . . . . . . . Crushed . | . . . . . . . . . . . . . . . . . . . . . . . . . . . . Highest Temperature 513 | . 66 96 . . 16 . 210 12 309 343 . 359 186 318 220 236 391 513 96 105 . 135 117 . 119 129 64 Average Temperature 78 | . 36 46 . . 6 . 69 3 75 121 . 109 45 103 90 99 123 129 40 41 . 44 42 . 42 42 33 Received Heat Transfer 3266 | . 153 6 4 10 80 . 209 453 333 240 . 180 72 237 20 8 32 301 85 36 . 129 129 18 207 225 99 Effects 18 | . . . . . . . . . . . . 2 . . . . 2 14 . . . . . . . . . Shutdowns 10 | . . . . . . . . . . . . 1 . . . . 2 7 . . . . . . . . . Energy Bleed 1 | . . . . . . . . . . . . 1 . . . . . . . . . . . . . . . Interference 1 | . . . . . . . . . . . . . . . . . . 1 . . . . . . . . . Matter Decay 1 | . . . . . . . . . . . . . . . . . . 1 . . . . . . . . . Damage (minor) 1 | . . . . . . . . . . . . . . . . . . 1 . . . . . . . . . Damage (major) 4 | . . . . . . . . . . . . . . . . . . 4 . . . . . . . . . Siege Activations 6 | . . . . . . . . . . . . . . . . . 1 4 . . . . . . 1 . . Total Turns 67 | . . . . . . . . . . . . . . . . . 21 38 . . . . . . 8 . . Longest Duration 21 | . . . . . . . . . . . . . . . . . 21 15 . . . . . . 8 . . Robots Corrupted . | . . . . . . . . . . . . . . . . . . . . . . . . . . . . Combat Hostiles . | . . . . . . . . . . . . . . . . . . . . . . . . . . . . Parts Fried 3 | . 2 . . . . . . . . . . . . 1 . . . . . . . . . . . . . Impact Corruptions . | . . . . . . . . . . . . . . . . . . . . . . . . . . . . Robots Melted 1 | . . . . . . . . . . . . 1 . . . . . . . . . . . . . . . Combat Hostiles 1 | . . . . . . . . . . . . 1 . . . . . . . . . . . . . . . Parts Melted 56 | . . . . . 1 . . 1 . . . 3 3 6 . . 1 7 3 3 . . 9 2 6 2 9 Heat Transferred 34245 | . 200 . 296 222 592 . 703 1608 518 1036 . 1481 1036 1628 740 259 740 3578 1036 1147 . 1554 3700 1702 4716 2830 2923 Parts Sabotaged 4 | . . . . . . . . . . . . . . . . . . . . . . . . . . . 4 Parts Stolen . | . . . . . . . . . . . . . . . . . . . . . . . . . . . . Parts Stripped . | . . . . . . . . . . . . . . . . . . . . . . . . . . . . Power Chain Reactions 2 | . 2 . . . . . . . . . . . . . . . . . . . . . . . . . . Missiles Intercepted . | . . . . . . . . . . . . . . . . . . . . . . . . . . . . Alert | -11 -10 -10 -9 -9 -8 -7 -7 -6 -6 -6 -6 -5 -5 -5 -5 -5 -5 -4 -4 -4 -4 -3 -3 -3 -2 -2 -2 ------- Run | Jun Mat Min Mat Min Mat Fac DSF Fac Low Low Zio Pro Fac Ext Cet Arc Hub Fac Upp Upp Zhi Pro Res Tes Res Qua Sec Peak Influence 893 | . 240 183 412 310 179 91 325 526 . . . . 235 198 452 291 333 242 . . . . 291 252 785 811 893 Initial 320 | . . 13 30 76 52 69 56 147 . . . . . 31 3 152 84 50 . . . . 217 112 84 275 320 Average 149 | . 168 110 222 217 129 84 235 67 . . . . 53 78 242 270 198 60 . . . . 114 103 368 507 533 Maximum Alert Level 3 | . 1 . 2 1 . . 1 2 . . . . 1 . 2 1 1 1 . . . . 1 1 3 3 3 Low Security (%) 76 | 100 41 100 38 49 100 100 36 89 . . . . 99 100 38 10 57 99 . . . . 79 91 42 . 8 Level 1 14 | . 58 . 59 50 . . 63 10 . . . . . . 38 89 42 . . . . . 20 8 7 23 34 Level 2 6 | . . . 2 . . . . . . . . . . . 22 . . . . . . . . . 36 60 28 Level 3 2 | . . . . . . . . . . . . . . . . . . . . . . . . . 13 16 28 Level 4 . | . . . . . . . . . . . . . . . . . . . . . . . . . . . . Level 5 . | . . . . . . . . . . . . . . . . . . . . . . . . . . . . High Security . | . . . . . . . . . . . . . . . . . . . . . . . . . . . . Max Security . | . . . . . . . . . . . . . . . . . . . . . . . . . . . . Sterilizations 1 | . . . . . . . 1 . . . . . . . . . . . . . . . . . . . . Squads Dispatched 90 | . . . 2 . 1 . 2 17 . . . 1 4 1 . . 2 18 . . . . 8 7 13 5 9 Investigation 11 | . . . 1 . 1 . . 2 . . . . 2 . . . . 4 . . . . . . . 1 . Extermination 42 | . . . . . . . . 6 . . . . 2 . . . 1 10 . . . . 6 4 7 2 4 Reinforcement 26 | . . . 1 . . . 2 5 . . . . . 1 . . 1 4 . . . . 1 2 5 . 4 Assault 7 | . . . . . . . . 1 . . . 1 . . . . . . . . . . . 1 1 2 1 Garrison 4 | . . . . . . . . 3 . . . . . . . . . . . . . . 1 . . . . Intercept . | . . . . . . . . . . . . . . . . . . . . . . . . . . . . Searches Triggered . | . . . . . . . . . . . . . . . . . . . . . . . . . . . . Construction Impeded . | . . . . . . . . . . . . . . . . . . . . . . . . . . . . Haulers Reinforced 3 | . . . . . . . . . . . . . . . . . . . . . . . . . 2 . 1 Active Scanning Responses . | . . . . . . . . . . . . . . . . . . . . . . . . . . . . Cargo Convoy Interrupts . | . . . . . . . . . . . . . . . . . . . . . . . . . . . . Stealth | -11 -10 -10 -9 -9 -8 -7 -7 -6 -6 -6 -6 -5 -5 -5 -5 -5 -5 -4 -4 -4 -4 -3 -3 -3 -2 -2 -2 --------- Run | Jun Mat Min Mat Min Mat Fac DSF Fac Low Low Zio Pro Fac Ext Cet Arc Hub Fac Upp Upp Zhi Pro Res Tes Res Qua Sec Distress Signals 13 | . . . 2 . 1 . . . . . . . 1 . 2 . . 2 . . . . 1 1 3 . . Communications Jammed 120 | . . . . . . . . . . . . 18 3 18 . . 5 9 . . . . 16 . 44 4 3 Distress Signals 110 | . . . . . . . . . . . . 18 3 18 . . 5 9 . . . . 11 . 43 . 3 Times Spotted 591 | . 10 8 17 12 6 . 12 59 19 13 . 19 22 30 24 4 11 65 14 12 . 36 42 18 65 29 44 Peak Tracking Total 7 | . 4 3 4 4 5 . 4 6 7 5 . 7 2 4 5 1 2 6 4 2 . 3 3 3 7 5 5 Tactical Retreats 42 | . . 1 . . . . 2 6 4 . . . . . . . . 2 . . . 14 1 . 8 2 2 Traps | -11 -10 -10 -9 -9 -8 -7 -7 -6 -6 -6 -6 -5 -5 -5 -5 -5 -5 -4 -4 -4 -4 -3 -3 -3 -2 -2 -2 ------- Run | Jun Mat Min Mat Min Mat Fac DSF Fac Low Low Zio Pro Fac Ext Cet Arc Hub Fac Upp Upp Zhi Pro Res Tes Res Qua Sec Traps Triggered 14 | . 1 . . . 1 . . 3 . . . . 2 2 . . 1 . . . . . . . 2 1 1 Indirectly . | . . . . . . . . . . . . . . . . . . . . . . . . . . . . Trap Hack Attempts 23 | . . . . . . . . . . . . . . . . . . 23 . . . . . . . . . Triggered . | . . . . . . . . . . . . . . . . . . . . . . . . . . . . Disarmed . | . . . . . . . . . . . . . . . . . . . . . . . . . . . . Reprogrammed 6 | . 1 . . . . . . . . . . . . . . . . 5 . . . . . . . . . Reused 3 | . . . . . . . . . . . . . . . . . . 3 . . . . . . . . . Traps Extracted . | . . . . . . . . . . . . . . . . . . . . . . . . . . . . Installed . | . . . . . . . . . . . . . . . . . . . . . . . . . . . . Triggered 6 | . . . . . . . . . . . . 1 . . . . . 3 2 . . . . . . . . Machines | -11 -10 -10 -9 -9 -8 -7 -7 -6 -6 -6 -6 -5 -5 -5 -5 -5 -5 -4 -4 -4 -4 -3 -3 -3 -2 -2 -2 ---------- Run | Jun Mat Min Mat Min Mat Fac DSF Fac Low Low Zio Pro Fac Ext Cet Arc Hub Fac Upp Upp Zhi Pro Res Tes Res Qua Sec Machines Disabled 60 | . 3 . 1 . . . 1 1 . . . . 3 . 4 1 2 8 1 5 . 6 2 7 1 7 7 Max in Single Turn 4 | . 2 . 1 . . . 1 1 . . . . 2 . 1 1 1 4 1 1 . 1 1 1 1 1 1 Garrison Access 9 | . . . . . . . . 3 . . . . 1 . . . . 2 . . . . 2 1 . . . Machines Repaired . | . . . . . . . . . . . . . . . . . . . . . . . . . . . . Machines Sabotaged . | . . . . . . . . . . . . . . . . . . . . . . . . . . . . Overloaded Fab Kills . | . . . . . . . . . . . . . . . . . . . . . . . . . . . . Hacking | -11 -10 -10 -9 -9 -8 -7 -7 -6 -6 -6 -6 -5 -5 -5 -5 -5 -5 -4 -4 -4 -4 -3 -3 -3 -2 -2 -2 --------- Run | Jun Mat Min Mat Min Mat Fac DSF Fac Low Low Zio Pro Fac Ext Cet Arc Hub Fac Upp Upp Zhi Pro Res Tes Res Qua Sec Machines Accessed 125 | . 6 . 2 . . 2 . 16 . 2 . . 6 11 1 . 7 22 1 1 3 . 13 15 10 3 4 Terminals 87 | . 5 . 2 . . 2 . 8 . . . . 4 10 1 . 7 14 1 . . . 8 10 8 3 4 Fabricators 6 | . . . . . . . . 2 . . . . . . . . . 3 . . . . . 1 . . . Repair Stations . | . . . . . . . . . . . . . . . . . . . . . . . . . . . . Recycling Units 8 | . 1 . . . . . . 3 . . . . 1 1 . . . 2 . . . . . . . . . Scanalyzers 9 | . . . . . . . . 1 . . . . . . . . . 1 . . . . 2 3 2 . . Garrison Access 9 | . . . . . . . . 2 . . . . 1 . . . . 2 . . . . 3 1 . . . Total Hacks 486 | . 20 . 6 . . 5 . 40 . 2 . . 20 37 2 . 45 100 1 1 12 . 57 62 42 11 23 Successful 292 | . 9 . . . . 3 . 27 . 2 . . 13 13 1 . 29 71 1 1 12 . 31 34 27 3 15 Failed 194 | . 11 . 6 . . 2 . 13 . . . . 7 24 1 . 16 29 . . . . 26 28 15 8 8 Catastrophic 28 | . . . 1 . . 1 . 4 . . . . 1 2 . . 2 2 . . . . 6 2 2 5 . Database Lockouts . | . . . . . . . . . . . . . . . . . . . . . . . . . . . . Manual 249 | . 7 . 5 . . 2 . 20 . . . . 11 23 2 2 29 46 2 1 . . 24 29 22 10 14 Terminals 384 | . 15 . 6 . . 5 . 28 . . . . 14 36 2 . 45 68 1 . . . 46 51 33 11 23 Fabricators 18 | . . . . . . . . 3 . . . . . . . . . 13 . . . . . 2 . . . Repair Stations . | . . . . . . . . . . . . . . . . . . . . . . . . . . . . Recycling Units 19 | . 5 . . . . . . 3 . . . . 5 1 . . . 5 . . . . . . . . . Scanalyzers 38 | . . . . . . . . 3 . . . . . . . . . 12 . . . . 6 8 9 . . Garrison Access 12 | . . . . . . . . 3 . . . . 1 . . . . 2 . . . . 5 1 . . . Terminal Hacks 168 | . 5 . . . . 2 . 10 . 2 . . 2 9 1 . 21 34 1 1 12 . 18 23 14 1 12 Record 4 | . . . . . . . . . . . . . . . . . 1 . 1 . . . . . 2 . . Part Schematic 15 | . . . . . . . . 1 . . . . . 1 . . 2 3 . . 4 . 1 3 . . . Robot Analysis 19 | . . . . . . . . . . . . . . 3 . . 1 6 . . 4 . 4 . . . 1 Prototype ID Bank 19 | . 1 . . . . . . . . . . . . 1 . . 4 3 . . 4 . 3 1 2 . . Open Door 8 | . . . . . . . . . . 2 . . . 1 1 . . . . 1 . . . 1 . . 2 Open DSF 1 | . . . . . . 1 . . . . . . . . . . . . . . . . . . . . . Level Access Points 5 | . 1 . . . . . . . . . . . . . . . 1 . . . . . . 2 . . 1 Branch Access Points 5 | . . . . . . . . . . . . . 1 . . . 1 1 . . . . 1 . 1 . . Emergency Access Points 4 | . . . . . . . . . . . . . . . . . 2 1 . . . . 1 . . . . Machine Index 1 | . . . . . . . . . . . . . . . . . . 1 . . . . . . . . . Terminal Index 7 | . . . . . . . . . . . . . . . . . 1 2 . . . . 1 2 1 . . Fabricator Index 2 | . . . . . . . . . . . . . . . . . 1 1 . . . . . . . . . Garrison Index 4 | . . . . . . . . 1 . . . . . . . . 1 1 . . . . . 1 . . . Alert Level 19 | . . . . . . . . 4 . . . . . 2 . . 1 4 . . . . 2 2 1 1 2 Unreport Threat 5 | . . . . . . . . 1 . . . . . . . . . 1 . . . . . . 2 . 1 Locate Traps 20 | . 1 . . . . 1 . 1 . . . . 1 1 . . 3 3 . . . . 3 3 2 . 1 Reprogram Traps 1 | . 1 . . . . . . . . . . . . . . . . . . . . . . . . . . Surveillance Status 1 | . . . . . . . . . . . . . . . . . . . . . . . . . . . 1 Patrol Status 2 | . . . . . . . . . . . . . . . . . . . . . . . . 1 . . 1 Recall Extermination 3 | . . . . . . . . . . . . . . . . . . 1 . . . . . 2 . . . Recall Reinforcements 7 | . . . . . . . . 1 . . . . . . . . . 4 . . . . . 1 1 . . Hauler Manifests 1 | . . . . . . . . . . . . . . . . . . . . . . . 1 . . . . Registered Components 3 | . . . . . . . . . . . . . . . . . 1 1 . . . . . . 1 . . Registered Prototypes 1 | . 1 . . . . . . . . . . . . . . . . . . . . . . . . . . Zone Layout 7 | . . . . . . . . 1 . . . . . . . . 1 1 . . . . 1 1 1 . 1 Protovariant Controls 3 | . . . . . . . . . . . . . . . . . . . . . . . . 3 . . . Activate Exoskeleton 1 | . . . . . . . . . . . . . . . . . . . . . . . . . . . 1 Fabricator Hacks 10 | . . . . . . . . 2 . . . . . . . . . 7 . . . . . 1 . . . Network Status 5 | . . . . . . . . 2 . . . . . . . . . 2 . . . . . 1 . . . Load Schematic 3 | . . . . . . . . . . . . . . . . . . 3 . . . . . . . . . Build 2 | . . . . . . . . . . . . . . . . . . 2 . . . . . . . . . Repair Station Hacks . | . . . . . . . . . . . . . . . . . . . . . . . . . . . . Recycling Unit Hacks 11 | . 2 . . . . . . 3 . . . . 3 1 . . . 2 . . . . . . . . . Report Inventory 9 | . 1 . . . . . . 3 . . . . 2 1 . . . 2 . . . . . . . . . Retrieve Components 2 | . 1 . . . . . . . . . . . 1 . . . . . . . . . . . . . . Scanalyzer 25 | . . . . . . . . 3 . . . . . . . . . 10 . . . . 1 3 8 . . Insert Component 12 | . . . . . . . . 1 . . . . . . . . . 4 . . . . 1 2 4 . . Analyze 13 | . . . . . . . . 2 . . . . . . . . . 6 . . . . . 1 4 . . Garrison Access Hacks 8 | . . . . . . . . 2 . . . . 1 . . . . 2 . . . . 2 1 . . . Seal Access 8 | . . . . . . . . 2 . . . . 1 . . . . 2 . . . . 2 1 . . . Unauthorized Hacks 70 | . 2 . . . . 1 . 7 . . . . 7 3 . . 8 16 . . . . 10 6 5 2 3 Terminals 64 | . 2 . . . . 1 . 6 . . . . 6 3 . . 8 12 . . . . 10 6 5 2 3 Track 22 | . . . . . . . . 2 . . . . 2 . . . 3 5 . . . . 4 2 2 1 1 Assimilate 7 | . . . . . . . . 1 . . . . . . . . 2 1 . . . . 2 1 . . . Botnet 28 | . 2 . . . . 1 . 3 . . . . 3 3 . . 3 4 . . . . 3 2 2 1 1 Disrupt 1 | . . . . . . . . . . . . . . . . . . 1 . . . . . . . . . Operators 6 | . . . . . . . . . . . . . 1 . . . . 1 . . . . 1 1 1 . 1 Fabricators 2 | . . . . . . . . 1 . . . . . . . . . 1 . . . . . . . . . Report 2 | . . . . . . . . 1 . . . . . . . . . 1 . . . . . . . . . Repair Stations . | . . . . . . . . . . . . . . . . . . . . . . . . . . . . Recycling Units 4 | . . . . . . . . . . . . . 1 . . . . 3 . . . . . . . . . Monitor 1 | . . . . . . . . . . . . . . . . . . 1 . . . . . . . . . Recyclers 1 | . . . . . . . . . . . . . . . . . . 1 . . . . . . . . . Tunnel 2 | . . . . . . . . . . . . . 1 . . . . 1 . . . . . . . . . Scanalyzers . | . . . . . . . . . . . . . . . . . . . . . . . . . . . . Garrison Access . | . . . . . . . . . . . . . . . . . . . . . . . . . . . . Data Cores Recovered 2 | . . . . . . . . 1 . . . . . . . . . 1 . . . . . . . . . Used . | . . . . . . . . . . . . . . . . . . . . . . . . . . . . Hacking Detections 96 | . 5 . 2 . . 1 . 10 . . . . 4 9 . . 6 20 . . . . 12 13 10 3 1 Full Trace Events 8 | . . . 1 . . . . 2 . . . . 1 . . . . 3 . . . . . . . 1 . Feedback Events 1 | . . . . . . . . . . . . . 1 . . . . . . . . . . . . . . Hackware Fried 1 | . . . . . . . . . . . . . 1 . . . . . . . . . . . . . . Feedback Blocked . | . . . . . . . . . . . . . . . . . . . . . . . . . . . . Robot Schematics Acquired 3 | . . . . . . . . . . . . . . . . . . . . . . . . 3 . . . Robots Built . | . . . . . . . . . . . . . . . . . . . . . . . . . . . . Authchips . | . . . . . . . . . . . . . . . . . . . . . . . . . . . . Time . | . . . . . . . . . . . . . . . . . . . . . . . . . . . . Total Robot Build Rating . | . . . . . . . . . . . . . . . . . . . . . . . . . . . . Part Schematics Acquired 24 | . . . . . . . . 2 . . . . . 1 . . 2 6 . . 4 . 1 4 4 . . Parts Built 4 | . . . . . . . . . . . . . . . . . . 4 . . . . . . . . . Authchips . | . . . . . . . . . . . . . . . . . . . . . . . . . . . . Time 203 | . . . . . . . . . . . . . . . . . . 203 . . . . . . . . . Total Part Build Rating 34 | . . . . . . . . . . . . . . . . . . 34 . . . . . . . . . Parts Repaired . | . . . . . . . . . . . . . . . . . . . . . . . . . . . . Time . | . . . . . . . . . . . . . . . . . . . . . . . . . . . . Parts Recycled . | . . . . . . . . . . . . . . . . . . . . . . . . . . . . Recycled Matter . | . . . . . . . . . . . . . . . . . . . . . . . . . . . . Retrieved Matter . | . . . . . . . . . . . . . . . . . . . . . . . . . . . . Retrieved Components 9 | . 6 . . . . . . . . . . . 3 . . . . . . . . . . . . . . Parts Scanalyzed 11 | . . . . . . . . 1 . . . . . . . . . 4 . . . . 1 2 3 . . Part Schematics Acquired 9 | . . . . . . . . 1 . . . . . . . . . 3 . . . . . 1 4 . . Parts Damaged . | . . . . . . . . . . . . . . . . . . . . . . . . . . . . Bothacking | -11 -10 -10 -9 -9 -8 -7 -7 -6 -6 -6 -6 -5 -5 -5 -5 -5 -5 -4 -4 -4 -4 -3 -3 -3 -2 -2 -2 ------------ Run | Jun Mat Min Mat Min Mat Fac DSF Fac Low Low Zio Pro Fac Ext Cet Arc Hub Fac Upp Upp Zhi Pro Res Tes Res Qua Sec Used RIF Installer . | . . . . . . . . . . . . . . . . . . . . . . . . . . . . Robots Hacked 1 | . . . . . . . . . . . . . . . . . . 1 . . . . . . . . . Non-combat 1 | . . . . . . . . . . . . . . . . . . 1 . . . . . . . . . Combat . | . . . . . . . . . . . . . . . . . . . . . . . . . . . . Robot Hacks Applied 1 | . . . . . . . . . . . . . . . . . . 1 . . . . . . . . . find_recycling 1 | . . . . . . . . . . . . . . . . . . 1 . . . . . . . . . Relay Couplers Released 5 | . . . . . . . . 1 . . . . . . . . . . . . . . 4 . . . . Machine Destruction 1 | . . . . . . . . 1 . . . . . . . . . . . . . . . . . . . Programmers 4 | . . . . . . . . . . . . . . . . . . . . . . . 4 . . . . Fabnet Peak Effective % . | . . . . . . . . . . . . . . . . . . . . . . . . . . . . Robots Rewired 14 | . . . . . . . . . 2 . . 1 . 7 . . . . 4 . . . . . . . . Allies Hacked . | . . . . . . . . . . . . . . . . . . . . . . . . . . . . Hacks Repelled . | . . . . . . . . . . . . . . . . . . . . . . . . . . . . Allies | -11 -10 -10 -9 -9 -8 -7 -7 -6 -6 -6 -6 -5 -5 -5 -5 -5 -5 -4 -4 -4 -4 -3 -3 -3 -2 -2 -2 -------- Run | Jun Mat Min Mat Min Mat Fac DSF Fac Low Low Zio Pro Fac Ext Cet Arc Hub Fac Upp Upp Zhi Pro Res Tes Res Qua Sec Total Allies 24 | . . 3 . . . . . . 2 . . 1 . 8 . . 1 1 4 . . . 1 1 . . 2 Largest Group 6 | . . 3 2 1 1 . . . 2 . . 1 . 6 2 1 1 2 4 4 . . 1 1 . . 2 Highest-Rated Group 192 | . . 72 62 31 31 . . . 52 . . 30 . 187 187 143 26 52 160 160 . . 10 26 . . 192 Highest-Rated Ally 159 | . . 31 31 31 31 . . . 32 . . 30 . 159 159 143 26 26 46 46 . . 10 26 . . 96 Warlord Squad Rendezvous 6 | . . . . . . . . . . . . . 4 . . . . 2 . . . . . . . . . Dakka 2 | . . . . . . . . . . . . . 1 . . . . 1 . . . . . . . . . Muscle 1 | . . . . . . . . . . . . . 1 . . . . . . . . . . . . . . Geek 1 | . . . . . . . . . . . . . . . . . . 1 . . . . . . . . . Ranger 1 | . . . . . . . . . . . . . 1 . . . . . . . . . . . . . . Ghost 1 | . . . . . . . . . . . . . 1 . . . . . . . . . . . . . . Total Orders 2 | . . . . . . . . . . . . . . . . . . 1 . . . . . 1 . . . STAY 2 | . . . . . . . . . . . . . . . . . . 1 . . . . . 1 . . . Ally Attacks 185 | . . 1 29 10 2 . . . 6 . . . . 51 34 . . . 26 3 . . . . . . 23 Total Damage 4551 | . . 21 443 125 22 . . . 251 . . . . 980 1225 . . . 598 63 . . . . . . 823 Kills 47 | . . 1 13 5 . . . . 2 . . . . 6 13 . . . 4 1 . . . . . . 2 Allies Corrupted . | . . . . . . . . . . . . . . . . . . . . . . . . . . . . Allies Melted . | . . . . . . . . . . . . . . . . . . . . . . . . . . . . Intel | -11 -10 -10 -9 -9 -8 -7 -7 -6 -6 -6 -6 -5 -5 -5 -5 -5 -5 -4 -4 -4 -4 -3 -3 -3 -2 -2 -2 ------- Run | Jun Mat Min Mat Min Mat Fac DSF Fac Low Low Zio Pro Fac Ext Cet Arc Hub Fac Upp Upp Zhi Pro Res Tes Res Qua Sec Robot Analysis Total 19 | . . . . . . . . . . . . . . 3 . . 1 6 . . 4 . 4 . . . 1 Derelict Logs Recovered 9 | . . 1 . . . . . . 1 2 1 1 . . . . . . 2 1 . . . . . . . Drone Launches . | . . . . . . . . . . . . . . . . . . . . . . . . . . . . Drone Recoveries . | . . . . . . . . . . . . . . . . . . . . . . . . . . . . Exploration | -11 -10 -10 -9 -9 -8 -7 -7 -6 -6 -6 -6 -5 -5 -5 -5 -5 -5 -4 -4 -4 -4 -3 -3 -3 -2 -2 -2 ------------- Run | Jun Mat Min Mat Min Mat Fac DSF Fac Low Low Zio Pro Fac Ext Cet Arc Hub Fac Upp Upp Zhi Pro Res Tes Res Qua Sec Turns Passed 44110 | 16 436 635 475 598 285 91 286 5851 2049 1690 1941 1671 1925 1733 705 310 850 6661 1701 2014 243 1860 3595 1797 2406 980 1306 Spaces Moved 22874 | 11 361 629 380 549 169 64 84 2274 902 874 1134 775 1169 924 312 165 421 3293 998 1195 144 1063 1719 924 1087 502 752 Core 60 | . . . . . . . . . . . 60 . . . . . . . . . . . . . . . . Treads 10831 | . . . . . . . . . . . . . . . 279 165 421 3293 998 1195 144 1063 1719 924 630 . . Legs 9748 | 1 . . . . 112 64 84 2025 902 874 1074 775 1169 924 33 . . . . . . . . . 457 502 752 Wheels 2235 | 10 361 629 380 549 57 . . 249 . . . . . . . . . . . . . . . . . . . Hover . | . . . . . . . . . . . . . . . . . . . . . . . . . . . . Flight . | . . . . . . . . . . . . . . . . . . . . . . . . . . . . Fastest Speed 50 | 90 90 90 85 90 90 130 130 120 190 120 50 120 120 120 160 160 160 160 160 160 160 160 160 160 120 120 120 Average Speed 154 | 93 90 90 88 90 121 130 172 193 190 170 162 180 120 149 163 160 160 160 160 160 160 160 160 160 150 120 120 Slowest Speed 600 | 120 90 90 90 90 200 130 200 330 190 190 600 190 190 190 240 160 160 160 160 160 160 160 160 160 260 120 120 Overloaded Moves . | . . . . . . . . . . . . . . . . . . . . . . . . . . . . Propulsion Burnouts . | . . . . . . . . . . . . . . . . . . . . . . . . . . . . Robots Hopped . | . . . . . . . . . . . . . . . . . . . . . . . . . . . . Cave-ins Triggered . | . . . . . . . . . . . . . . . . . . . . . . . . . . . . Teleports 1 | . . . . . . . . . . . . . . . . . . . . . . . . . . . 1 Exploration Rate (%) 63 | 2 63 96 34 97 16 4 47 58 91 90 85 86 23 88 87 97 40 65 98 97 62 94 43 73 31 52 54 Regions Visited 27 Branch Regions 17 Pre-discovered Areas 6 | . . . . . . . . . 1 1 1 . 1 . . . . 1 1 . . . . . . . . Known Exits Taken 25 | . 1 1 1 1 1 1 . 1 1 1 1 1 1 1 1 1 1 1 1 1 1 1 1 1 1 1 . Unknown Exits Taken 1 | 1 . . . . . . . . . . . . . . . . . . . . . . . . . . . Scrap Searched 32 | . . 1 . 2 . . . . 5 4 3 3 . . . . . . 5 5 . 4 . . . . . Spaces Dug 105 | . . . . . . . . 15 . 1 . . 7 . . . . 49 . . . . 17 5 11 . . Terrain Destroyed 746 | . 5 46 1 1 . . 1 24 3 8 . 9 60 22 6 13 30 237 23 36 . 68 61 17 36 15 24 Melee 17 | . . . . . . . . 15 . 1 . . 1 . . . . . . . . . . . . . . Projectile 535 | . . 1 1 1 . . 1 2 1 4 . 4 18 22 6 13 30 173 23 36 . 68 60 17 23 11 20 AOE 155 | . 5 45 . . . . . . . . . . 41 . . . . 64 . . . . . . . . . Terrain Rammed . | . . . . . . . . . . . . . . . . . . . . . . . . . . . . Walls Destroyed . | . . . . . . . . . . . . . . . . . . . . . . . . . . . . Machines Disabled . | . . . . . . . . . . . . . . . . . . . . . . . . . . . . Actions | -11 -10 -10 -9 -9 -8 -7 -7 -6 -6 -6 -6 -5 -5 -5 -5 -5 -5 -4 -4 -4 -4 -3 -3 -3 -2 -2 -2 --------- Run | Jun Mat Min Mat Min Mat Fac DSF Fac Low Low Zio Pro Fac Ext Cet Arc Hub Fac Upp Upp Zhi Pro Res Tes Res Qua Sec Total 29691 | 16 436 685 487 632 221 72 174 3475 1096 978 1208 959 1617 1205 447 196 558 4486 1070 1265 156 1152 2444 1157 1676 779 1044 Wait 4036 | . 16 34 56 61 15 7 26 890 40 30 6 53 342 113 23 9 102 833 14 25 . 16 570 116 355 151 133 Move 22847 | 10 360 628 379 548 168 63 83 2273 901 873 1133 774 1168 923 311 164 420 3292 997 1194 143 1062 1718 923 1086 501 752 Hop . | . . . . . . . . . . . . . . . . . . . . . . . . . . . . Pick Up 66 | 2 2 1 2 . 3 . 3 11 4 2 3 3 2 4 2 . 1 8 . 2 1 . 3 3 1 1 2 Fast Attach 189 | 2 6 1 7 3 6 . 5 18 2 . 17 4 9 4 10 . 3 22 2 4 6 2 2 9 16 3 26 Attach 16 | . . . . . . . 1 2 1 2 1 1 2 1 1 . . 1 . 1 . . . 1 1 . . Detach 24 | 1 . 1 2 . 1 . 3 1 . . 2 . 2 . . . 1 3 1 1 . . . 2 3 . . Swap 235 | . 1 4 3 . 2 1 1 39 10 10 2 6 11 4 9 3 4 38 2 . 1 . 15 12 30 13 14 Drop 208 | 1 5 1 8 3 6 1 4 24 4 . 20 6 12 8 13 1 2 30 1 5 5 2 5 9 7 5 20 Fire 1089 | . 35 12 22 10 14 . 33 104 64 43 8 47 45 43 32 8 20 146 21 18 . 41 77 36 91 57 62 Melee 46 | . . . . . . . . 22 3 1 16 . 3 . . . . 1 . . . . . . . . . Ram . | . . . . . . . . . . . . . . . . . . . . . . . . . . . . Kick . | . . . . . . . . . . . . . . . . . . . . . . . . . . . . Crush . | . . . . . . . . . . . . . . . . . . . . . . . . . . . . Escape Stasis 5 | . . . . . . . . . . . . . . 5 . . . . . . . . . . . . . Rewire 82 | . . . . . . . . . 3 . . 13 . 53 . . . . 13 . . . . . . . . Trap 23 | . . . . . . . . . . . . . . . . . . 23 . . . . . . . . . Miscellaneous 825 | . 11 3 8 7 6 . 15 91 64 17 . 52 21 47 46 11 5 89 19 15 . 29 54 46 86 48 35 Route ------- -11/Junkyard -10/Materials (discovered 4 exits: *Mat x3 / *Min) -10/Mines (discovered 2 exits: *Mat x2) -9/Materials (discovered 2 exits: *Mat / *Min) -9/Mines (discovered 2 exits: *Mat x2) -8/Materials -7/Factory -7/DSF -6/Factory (discovered 4 exits: *Fac x3 / *Low) -6/Lower Caves -6/Lower Caves (discovered 2 exits: *Fac / *Zio) -6/Zion -5/Proximity Caves -5/Factory (discovered 4 exits: Upp x2 / *Ext x2) -5/Extension (discovered 2 exits: *Fac / *Cet) -5/Cetus (discovered 3 exits: *Fac x2 / *Arc) -5/Archives (discovered 3 exits: *Fac / *Hub x2) -5/Hub_04(d) (discovered 4 exits: *Fac x4) -4/Factory (discovered 6 exits: *Res x3 / *Upp x2 / Arm) -4/Upper Caves -4/Upper Caves (discovered 2 exits: *Res / *Zhi) -4/Zhirov -3/Proximity Caves -3/Research (discovered 3 exits: *Res / *Tes x2) -3/Testing -2/Research (discovered 2 exits: *Qua x2) -2/Quarantine -2/Section 7 (discovered 1 exit: Acc) History --------- Turn | Location | Event 1 | -11/Junkyard | Upgraded with Propulsion slot (x1) 1 | -11/Junkyard | Upgraded with Utility slot (x3) 1 | -11/Junkyard | Discovered new exit (range 1) 17 | -11/Junkyard | Entered Materials 291 | -10/Materials | Discovered new exit (range 13) 301 | -10/Materials | Identified exit to Materials 305 | -10/Materials | Build established: Mutant 444 | -10/Materials | Discovered new exit (range 11) 452 | -10/Materials | Identified exit to Mines 453 | -10/Materials | Entered Mines 455 | -10/Mines | Reached level 2 461 | -10/Mines | Discovered exit to Materials (range 9) 477 | -10/Mines | Learned Materials interactive machine intel 530 | -10/Mines | Assembled infested the area 620 | -10/Mines | Build established: Scavenger-Mutant 649 | -10/Mines | A weapon hastily lodged in a ceiling crevice suddenly fell to the ground 687 | -10/Mines | Discovered exit to Materials (range 15) 891 | -10/Mines | Received a Mining Laser from a helpful Derelict 1088 | -10/Mines | Entered Materials 1088 | -9/Materials | Accompanied by 2 allies 1089 | -9/Materials | Loaded intel: 17 interactive machine locations 1090 | -9/Materials | Reached level 3 1090 | -9/Materials | Reached level 4 1093 | -9/Materials | Led the pair of lost Derelicts to an unsafe place 1199 | -9/Materials | Upgraded with Utility slot (x2) 1199 | -9/Materials | Upgraded with Weapon slot (x1) 1269 | -9/Materials | Reached level 5 1305 | -9/Materials | Discovered new exit (range 16) 1466 | -9/Materials | Discovered new exit (range 8) 1475 | -9/Materials | Identified exit to Mines 1563 | -9/Materials | Entered Mines 1563 | -9/Mines | Accompanied by 1 ally 1563 | -9/Mines | Discovered new exit (range 8) 1570 | -9/Mines | Identified exit to Materials 1573 | -9/Mines | Discovered exit to Materials (range 12) 1576 | -9/Mines | Reached level 6 1583 | -9/Mines | Build established: Scavenger-Skirmisher 1772 | -9/Mines | Found a damaged Exp. Sensor Array with a note attached 1774 | -9/Mines | Found Prototype Device 1774 | -9/Mines | Identified Exp. Sensor Array 1799 | -9/Mines | Found a hidden stash of uninstalled traps 2161 | -9/Mines | Entered Materials 2161 | -8/Materials | Accompanied by 1 ally 2163 | -8/Materials | Reached level 7 2163 | -8/Materials | Reached level 8 2166 | -8/Materials | Upgraded with Utility slot (x2) 2439 | -8/Materials | Discovered new exit (range 5) 2444 | -8/Materials | Identified exit to Factory 2446 | -8/Materials | Entered Factory 2448 | -7/Factory | Reached level 9 2448 | -7/Factory | Reached level 10 2473 | -7/Factory | Upgraded with Utility slot (x1) 2537 | -7/Factory | Identified exit to DSF 2537 | -7/Factory | Entered DSF 2539 | -7/DSF | Reached level 11 2550 | -7/DSF | Discovered new exit (range 20) 2568 | -7/DSF | Additional patrols routed to DSF 2611 | -7/DSF | Core integrity fell below 50% 2678 | -7/DSF | Core integrity fell below 20% 2681 | -7/DSF | Reached level 12 2701 | -7/DSF | Found Prototype Device 2701 | -7/DSF | Identified Active Sensor Suite 2725 | -7/DSF | Sterilization system engaged 2726 | -7/DSF | Found Hvy. Reactive Plating 2745 | -7/DSF | Ambient heat levels rising (+10) 2760 | -7/DSF | Ambient heat levels rising (+10) 2775 | -7/DSF | Ambient heat levels rising (+10) 2790 | -7/DSF | Ambient heat levels rising (+10) 2805 | -7/DSF | Ambient heat levels rising (+10) 2820 | -7/DSF | Ambient heat levels rising (+10) 2821 | -7/DSF | Identified exit to Factory 2823 | -7/DSF | Entered Factory 2825 | -6/Factory | Reached level 13 2826 | -6/Factory | Upgraded with Power slot (x1) 2826 | -6/Factory | Upgraded with Propulsion slot (x1) 3056 | -6/Factory | Build established: Hacker-Skirmisher 3506 | -6/Factory | Discovered new exit (range 9) 3534 | -6/Factory | Identified exit to Lower Caves 3968 | -6/Factory | Discovered new exit (range 16) 3970 | -6/Factory | Build established: Hacker-Assassin 4007 | -6/Factory | Identified exit to Factory 4521 | -6/Factory | Build established: Hacker-Skirmisher 5175 | -6/Factory | Reached level 14 6497 | -6/Factory | Discovered exit to Factory (range 15) 6567 | -6/Factory | Garrison activated, responded to threat 6573 | -6/Factory | Reached level 15 6778 | -6/Factory | Reached level 16 6779 | -6/Factory | Upgraded with Utility slot (x1) 7215 | -6/Factory | Build established: Hacker-Assassin 7876 | -6/Factory | Build established: Hacker-Skirmisher 8336 | -6/Factory | Discovered exit to Factory (range 13) 8674 | -6/Factory | Entered Lower Caves 8675 | -6/Lower Caves | Encountered a Warlord checkpoint 8676 | -6/Lower Caves | Reached level 17 8727 | -6/Lower Caves | Met a Warlord Commander 8728 | -6/Lower Caves | Learned location of Warlord (-5) 8734 | -6/Lower Caves | Found Encrypted Comm Array 9104 | -6/Lower Caves | Attracted the attention of an 0b10 checkpoint 9485 | -6/Lower Caves | Discovered new exit (range 8) 9496 | -6/Lower Caves | Identified exit to Lower Caves 9817 | -6/Lower Caves | Attracted the attention of an 0b10 outpost 9846 | -6/Lower Caves | Core integrity fell below 50% 9867 | -6/Lower Caves | Core integrity fell below 20% 10014 | -6/Lower Caves | Reached level 18 10326 | -6/Lower Caves | Upgraded with Weapon slot (x1) 10330 | -6/Lower Caves | Spotted B-75 Beast 10391 | -6/Lower Caves | Destroyed B-75 Beast 10690 | -6/Lower Caves | Build established: Hacker-Gunner 10723 | -6/Lower Caves | Entered another Lower Caves area 11040 | -6/Lower Caves | Discovered exit to Factory (range 10) 11906 | -6/Lower Caves | Learned location of 1 exit from Factory 11976 | -6/Lower Caves | Spotted B-75 Beast 12045 | -6/Lower Caves | Destroyed B-75 Beast 12393 | -6/Lower Caves | Learned location of Zion (-6) 12394 | -6/Lower Caves | Encountered a Warlord checkpoint 12399 | -6/Lower Caves | Discovered new exit (range 14) 12412 | -6/Lower Caves | Identified exit to Zion 12413 | -6/Lower Caves | Entered Zion 12490 | -6/Zion | Given A8's code to call for help 12625 | -6/Zion | Received a visual enhancement algorithm 12723 | -6/Zion | Learned location of Extension (-5) 12790 | -6/Zion | Found Prototype Device 12790 | -6/Zion | Identified Bomb Factory No. 2 13090 | -6/Zion | Acquired unknown access codes intercepted by a Zionite 13177 | -6/Zion | Learned Factory garrison access intel 13284 | -6/Zion | Learned Factory emergency access door positions 13703 | -6/Zion | Reached level 19 14330 | -6/Zion | Discovered new exit (range 14) 14353 | -6/Zion | Identified exit to Proximity Caves 14354 | -6/Zion | Entered Proximity Caves 14500 | -5/Proximity Caves | Attracted the attention of an 0b10 checkpoint 14910 | -5/Proximity Caves | Upgraded with Propulsion slot (x1) 15281 | -5/Proximity Caves | Learned Factory terminal intel 15346 | -5/Proximity Caves | Attracted the attention of an 0b10 outpost 15377 | -5/Proximity Caves | Reached level 20 15428 | -5/Proximity Caves | Destroyed 7 combat bots 15517 | -5/Proximity Caves | Discovered exit to Factory (range 7) 15624 | -5/Proximity Caves | Found Imp. Powered Armor 15646 | -5/Proximity Caves | Upgraded with Weapon slot (x1) 16025 | -5/Proximity Caves | Entered Factory 16026 | -5/Factory | Identified exit to Extension 16027 | -5/Factory | Reached level 21 16029 | -5/Factory | Loaded intel: 28 terminal locations 16030 | -5/Factory | Loaded intel: 4 garrison access locations 16104 | -5/Factory | Joined by Warlord Muscle squad 16157 | -5/Factory | Identified exit to Upper Caves 16670 | -5/Factory | Joined by Warlord Dakka squad 17179 | -5/Factory | Imp. Hacking Suite fried by hacking feedback 17290 | -5/Factory | Joined by Warlord Ranger squad 17668 | -5/Factory | Joined by Warlord Ghost squad 17950 | -5/Factory | Entered Extension 17952 | -5/Extension | Reached level 22 18715 | -5/Extension | Spotted B-75 Beast 18726 | -5/Extension | Destroyed B-75 Beast 18748 | -5/Extension | Spotted B-75 Beast 18763 | -5/Extension | Allies destroyed B-75 Beast 19076 | -5/Extension | Rescued A7 19486 | -5/Extension | Upgraded with Weapon slot (x1) 19650 | -5/Extension | Discovered new exit (range 10) 19652 | -5/Extension | Discovered new exit (range 6) 19674 | -5/Extension | Identified exit to Cetus 19678 | -5/Extension | Identified exit to Factory 19683 | -5/Extension | Entered Cetus 19683 | -5/Cetus | Accompanied by 2 allies (A7) 19688 | -5/Cetus | Acquired a Cetus Manufacturing Module code from A7 19709 | -5/Cetus | Spotted Cetus Guard 19709 | -5/Cetus | Spotted Cetus Guard 19711 | -5/Cetus | Spotted Cetus Guard 19717 | -5/Cetus | Reached level 23 19717 | -5/Cetus | Allies destroyed Cetus Guard 19720 | -5/Cetus | Destroyed Cetus Guard 19728 | -5/Cetus | Destroyed Cetus Guard 19729 | -5/Cetus | Spotted Cetus Guard 19733 | -5/Cetus | Allies destroyed Cetus Guard 19817 | -5/Cetus | System corruption reached 10% 19887 | -5/Cetus | Discovered exit to Factory (range 17) 20044 | -5/Cetus | Cetus Manufacturing Module disabled 20050 | -5/Cetus | Build established: Scavenger-Gunner 20105 | -5/Cetus | Failed to start Cetus Manufacturing Module 20116 | -5/Cetus | Escorted A7 to Cetus Mainframe 20180 | -5/Cetus | Discovered new exit (range 17) 20210 | -5/Cetus | Spotted Cetus Guard 20210 | -5/Cetus | Spotted Cetus Guard 20214 | -5/Cetus | Spotted Cetus Guard 20214 | -5/Cetus | Destroyed Cetus Guard 20215 | -5/Cetus | Spotted Cetus Guard 20225 | -5/Cetus | Allies destroyed Cetus Guard 20231 | -5/Cetus | Destroyed Cetus Guard 20234 | -5/Cetus | Destroyed Cetus Guard 20245 | -5/Cetus | Discovered exit to Factory (range 17) 20273 | -5/Cetus | Met Revision 17 20287 | -5/Cetus | Upgraded with Power slot (x1) 20386 | -5/Cetus | Identified exit to Archives 20388 | -5/Cetus | Entered Archives 20388 | -5/Archives | Accompanied by 1 ally (A7) 20393 | -5/Archives | Received a hacking code to weaken MAIN.C 20456 | -5/Archives | Discovered new exit (range 17) 20491 | -5/Archives | Discovered new exit (range 17) 20515 | -5/Archives | Identified exit to Hub_04(d) 20605 | -5/Archives | Discovered exit to Factory (range 16) 20659 | -5/Archives | Unable to access archive contents 20665 | -5/Archives | Build established: Scavenger-Tank 20698 | -5/Archives | Entered Hub_04(d) 20976 | -5/Hub_04(d) | Reached level 24 21548 | -5/Hub_04(d) | Entered Factory 21548 | -4/Factory | Accompanied by 1 ally 21641 | -4/Factory | Found Unknown Device 21641 | -4/Factory | Identified Quantum Capacitor 21687 | -4/Factory | Joined by Warlord Geek squad 22049 | -4/Factory | Discovered new exit (range 3) 22052 | -4/Factory | Identified exit to Upper Caves 22114 | -4/Factory | Build established: Scavenger-Gunner 22600 | -4/Factory | Identified exit to Armory 22755 | -4/Factory | Reached level 25 24302 | -4/Factory | Discovered new exit (range 14) 24321 | -4/Factory | Identified exit to Research 24626 | -4/Factory | Spotted B-86 Titan 24639 | -4/Factory | Build established: Scavenger-Mutant 25194 | -4/Factory | Discovered exit to Research (range 16) 25456 | -4/Factory | Build established: Scavenger-Gunner 25802 | -4/Factory | Joined by Warlord Dakka squad 26857 | -4/Factory | Build established: Scavenger-Mutant 27259 | -4/Factory | Reached level 26 27323 | -4/Factory | Fabricated Adv. Weapon Cycler (x2) 27626 | -4/Factory | Build established: Scavenger-Gunner 27807 | -4/Factory | Fabricated Enh. Quantum Rifle (x2) 28137 | -4/Factory | Discovered exit to Research (range 17) 28209 | -4/Factory | Entered Upper Caves 28276 | -4/Upper Caves | Build established: Hacker-Gunner 28361 | -4/Upper Caves | Learned Research trap positions 28364 | -4/Upper Caves | Attacked by a delusional Derelict stockpiling Unaware 29027 | -4/Upper Caves | Discovered new exit (range 5) 29258 | -4/Upper Caves | Attracted the attention of an 0b10 checkpoint 29594 | -4/Upper Caves | Identified exit to Upper Caves 29910 | -4/Upper Caves | Entered another Upper Caves area 29910 | -4/Upper Caves | Accompanied by 4 allies 30389 | -4/Upper Caves | Discovered new exit (range 16) 30408 | -4/Upper Caves | Identified exit to Zhirov 30635 | -4/Upper Caves | Attracted the attention of an 0b10 checkpoint 30827 | -4/Upper Caves | Learned Research garrison access intel 31367 | -4/Upper Caves | Build established: Scavenger-Gunner 31372 | -4/Upper Caves | Destroyed 7 combat bots 31682 | -4/Upper Caves | Discovered exit to Research (range 15) 31924 | -4/Upper Caves | Entered Zhirov 31924 | -4/Zhirov | Discovered new exit (range 4) 31926 | -4/Zhirov | Reached level 27 31953 | -4/Zhirov | Met Zhirov 32012 | -4/Zhirov | Zhirov requested help retrieving the SGEMP Prototype 32039 | -4/Zhirov | Found Alien Artifact 32039 | -4/Zhirov | Identified Integrated Reactor 32039 | -4/Zhirov | Installed Integrated Reactor, increased core energy generation (+10) 32166 | -4/Zhirov | Identified exit to Proximity Caves 32167 | -4/Zhirov | Entered Proximity Caves 32452 | -3/Proximity Caves | Attracted the attention of an 0b10 checkpoint 32768 | -3/Proximity Caves | Discovered exit to Research (range 5) 33631 | -3/Proximity Caves | Reached level 28 33691 | -3/Proximity Caves | Attracted the attention of an 0b10 base 34027 | -3/Proximity Caves | Entered Research 34028 | -3/Research | Loaded intel: 96 trap records 34029 | -3/Research | Loaded intel: 4 garrison access locations 34090 | -3/Research | Discovered new exit (range 5) 34096 | -3/Research | Identified exit to Research 34771 | -3/Research | Build established: Scavenger-Mutant 35423 | -3/Research | Reached level 29 35438 | -3/Research | Identified exit to Testing 36632 | -3/Research | Build established: Scavenger-Gunner 36878 | -3/Research | Spotted B-86 Titan 37622 | -3/Research | Entered Testing 37643 | -3/Testing | Protovariant out of control (PY-7Y2C5YQBMT) 37674 | -3/Testing | Found Prototype Hackware 37674 | -3/Testing | Identified System Mapper 37759 | -3/Testing | Found Antimissile System 37977 | -3/Testing | Found Prototype Processor 37977 | -3/Testing | Identified Exp. Target Analyzer 38078 | -3/Testing | Build established: Wizard-Gunner 38900 | -3/Testing | Reached level 30 38904 | -3/Testing | Upgraded with Propulsion slot (x1) 39210 | -3/Testing | Found Prototype Ballistic Gun 39210 | -3/Testing | Identified Hyp. Multirail 39419 | -3/Testing | Entered Research 39515 | -2/Research | Identified exit to Quarantine 39671 | -2/Research | Found Prototype Processor 39671 | -2/Research | Identified Exp. Core Analyzer 40048 | -2/Research | Reached level 31 40058 | -2/Research | Upgraded with Propulsion slot (x1) 40530 | -2/Research | Destroyed 10 combat bots 40805 | -2/Research | Spotted B-90 Cyclops 40866 | -2/Research | Destroyed B-90 Cyclops 41177 | -2/Research | Spotted B-90 Cyclops 41276 | -2/Research | Reached level 32 41699 | -2/Research | First assault squad dispatched 41825 | -2/Research | Entered Quarantine 42107 | -2/Quarantine | First assault squad dispatched 42366 | -2/Quarantine | Cryocooling Duct disabled 42381 | -2/Quarantine | Ambient heat levels rising (+20) 42381 | -2/Quarantine | Non-combat units ordered to evacuate 42639 | -2/Quarantine | Spotted Fortress 42701 | -2/Quarantine | Destroyed Fortress 42800 | -2/Quarantine | Discovered new exit (range 5) 42803 | -2/Quarantine | Identified exit to Section 7 42805 | -2/Quarantine | Entered Section 7 42807 | -2/Section 7 | Reached level 33 42981 | -2/Section 7 | Found Integrated Reactor 42981 | -2/Section 7 | Installed Integrated Reactor, increased core energy generation (+10) 43048 | -2/Section 7 | Found Alien Artifact 43048 | -2/Section 7 | Identified Integrated Mediator 43048 | -2/Section 7 | Installed Integrated Mediator, increased core attachment efficiency. 43209 | -2/Section 7 | Identified exit to Access 43350 | -2/Section 7 | Found Alien Artifact 43350 | -2/Section 7 | Identified Spacefold Activator 43421 | -2/Section 7 | Spotted Alpha 7 43535 | -2/Section 7 | Spotted Alpha 7 43574 | -2/Section 7 | Destroyed Alpha 7 43586 | -2/Section 7 | First assault squad dispatched 43603 | -2/Section 7 | Found Prototype Device 43603 | -2/Section 7 | Identified Adv. EM Disruption Field 43616 | -2/Section 7 | Destroyed 7 combat bots 43624 | -2/Section 7 | Core integrity fell below 50% 43707 | -2/Section 7 | Spotted B-99 Colossus 43744 | -2/Section 7 | Enhanced Grunt warped into view, answering call for help 43749 | -2/Section 7 | Enhanced Grunt warped into view, answering call for help 43796 | -2/Section 7 | Spotted Executioner 43796 | -2/Section 7 | Spotted Executioner 43806 | -2/Section 7 | Core integrity fell below 20% 43849 | -2/Section 7 | Destroyed Executioner 43863 | -2/Section 7 | Found Prototype Device 43863 | -2/Section 7 | Identified Adv. Kinecellerator 43887 | -2/Section 7 | Found Exp. Core Analyzer 43900 | -2/Section 7 | Spotted Striker 43900 | -2/Section 7 | Spotted Striker 43993 | -2/Section 7 | Found Alien Reactor 43993 | -2/Section 7 | Identified Matter Drive 44005 | -2/Section 7 | Found Alien Artifact 44005 | -2/Section 7 | Identified Transdimensional Reconstructor 44005 | -2/Section 7 | Warped through subspace 44080 | -2/Section 7 | Found Alien Artifact 44080 | -2/Section 7 | Identified Terrabomb 44080 | -2/Section 7 | Used Terrabomb 44090 | -2/Section 7 | Spotted Executioner 44091 | -2/Section 7 | Spotted Executioner 44099 | -2/Section 7 | Destroyed Executioner 44104 | -2/Section 7 | Destroyed Executioner 44111 | -2/Section 7 | Destroyed by P-80 Master with Gamma Rifle Last Messages --------------- 44102_ Executioner suffers critical hit (Destroy). 44102_ Destroyed Prototype Ballistic Gun. 44104_ Exp. Optical Array melted. 44104_ Adv. Kinecellerator melted. 44104_ Exp. Core Analyzer melted. 44104_ Executioner destroyed. 44104_ Switching to secondary target: P-80 Master. 44104_ Slug penetrates P-80 Master. 44104_ P-80 Master suffers critical hit (Destroy). 44104_ Destroyed Adv. Heat Sink. 44104_ Slug penetrates P-80 Master. 44104_ HV Slug penetrates P-80 Master. 44104_ HV Slug penetrates FTL Facilitator. 44106_ P-80 Master resets P-80 Master, system corruption cleaned. 44107_ Sml. Battery melted. 44107_ P-80 Master destroyed. 44107_ Switching to secondary target: P-80 Master. 44107_ Slug penetrates P-80 Master. 44107_ P-80 Master destroyed. 44107_ HV Slug penetrates FTL Facilitator. Map ----- +----------------------------------------------------+ | | | | | | | | | | | | | | | | | | | | | ?????????????? ?????????? | | ?????????????? ?????????? | | ?????????????? ?? ??????? | | ?????????????? ??????? | | ?????????????? ??????? | | ????????????? ???????? | | ??????????????? ???????? | | ???????#?"" ??";;;;;;;;;;;;;;;;;;;;";;"########## | | ??????? !"""""""""";!";T T;""!;"" "]" ""#"" | | ?????? % """"""""";! " "*" """ " #"" | | ?????? %=%[ " ;;;; ; " ;" ""# | | ?????? % ;;;;;;;; #### | | ?????????? "" T | | ??????????????"" | | ???????????????"" | | ????????????????"" @ | | ?????????????????"" | | ??????????????????"" """ | | ???????????????????"" ! "??" | | ????????????????????""=*|[ ?" | | ?????????????????????""%=! " " | | ????????????????????? !=[%! "? " | | ?????????????????? ?"""""" ? | | ???????????????? ??????" | | ?????????? ???? """""""p """""""""" | | ??????? ? """""?"?" | | ?????? " " " " " | | ??????? " | | ???????? ? """ | | ?????"""" ??? "?? | | """""" ""?"" ????? | | k ??" c """"???????? | | """"" "????????? "" | | " "???????""" ? | | " """""""""? ""?? | | """ " " " " """ ??? | | "" T " " " " """"""" | | "??" " " " "" " | | "??" "" """""" | | """" "" """ "" | +----------------------------------------------------+ Best States ------------- Heat Dissipation 166 Energy Generation 97 Energy Capacity 850 Matter Stores 400 Matter Capacity 400 Sight Range 20 Robot Scan Range 22 Terrain Scan Range 24 Terrain Scan Density 210 Jamming Range 16 EM Shielding 3 Armor Coverage 1250 Resistance: KI 60 Resistance: TH 50 Resistance: EX 20 Resistance: EM 20 Resistance: I 20 Resistance: S 20 Resistance: P 20 Propulsion Shielding 33 Weapon Cycling 25 Phase Shifting 15 Evasion (%) 70 Targeting Accuracy 6 Target Analysis 6 Armor Integrity Analysis 40 Recoil Reduction 4 Matter Filtering 50 Particle Charging 30 Kinecelleration 50 Offensive Hacking 45 Defensive Hacking 24 Item Schematics ----------------- Adv. Trap Extractor | -6/Factory | Hacked Imp. System Restoration Module | -6/Factory | Scanalyzed Phase Gun | -5/Extension | Hacked Adv. System Restoration Module | -5/Hub_04(d) | Hacked Lrn. Tractor Beam | -5/Hub_04(d) | Hacked Adv. Weapon Cycler | -4/Factory | Hacked Imp. Cloaking Device | -4/Factory | Hacked Centrium Medium Armor Plating | -4/Factory | Scanalyzed Imp. Dynamic Insulation System | -4/Factory | Scanalyzed Adv. KE Penetrator | -4/Factory | Scanalyzed Enh. Quantum Rifle | -4/Factory | Hacked Assault Drone Bay | -4/Zhirov | Free Exp. Heat Sink | -4/Zhirov | Free Exp. Optical Array | -4/Zhirov | Free Imp. Arc Thrower | -4/Zhirov | Free Adv. Heavy Siege Treads | -3/Research | Hacked Lgt. Regenerative Plating | -3/Testing | Hacked Antimissile System | -3/Testing | Scanalyzed Exp. Signal Interpreter | -3/Testing | Hacked Enh. Biometal Leg | -3/Testing | Archive Particle Accelerator | -2/Research | Scanalyzed Adv. Focal Shield | -2/Research | Scanalyzed Adv. Thermal Shield | -2/Research | Scanalyzed Adv. Trap Scanner | -2/Research | Scanalyzed Robot Schematics ------------------ L-61 Swordsman | -3/Testing | Archive A-02 Transporter | -3/Testing | Archive R-06 Scavenger | -3/Testing | Archive Fabricated ------------ Adv. Weapon Cycler | x2 | -4/Factory Enh. Quantum Rifle | x2 | -4/Factory Alien Tech Used ----------------- Integrated Reactor Integrated Mediator Spacefold Activator Matter Drive Transdimensional Reconstructor Terrabomb Achievements -------------- None Challenges ------------ None RPGLIKE | -11 -10 -10 -9 -9 -8 -7 -7 -6 -6 -6 -6 -5 -5 -5 -5 -5 -5 -4 -4 -4 -4 -3 -3 -3 -2 -2 -2 --------- Run | Jun Mat Min Mat Min Mat Fac DSF Fac Low Low Zio Pro Fac Ext Cet Arc Hub Fac Upp Upp Zhi Pro Res Tes Res Qua Sec Levels Raised 32 | . . 1 3 1 2 2 2 4 2 . 1 1 1 1 1 . 1 2 . . 1 1 1 1 2 . 1 XP Earned 53243 | 4000 1055 1488 4410 1982 2584 2643 2445 7269 1796 1012 316 2344 1955 1497 1026 219 558 3301 534 534 141 1764 1993 824 3125 1147 1281 XP Spent 48980 | 3650 . . 4810 . 6000 2800 2950 6250 3000 . . 2850 1650 1400 950 . 2150 1520 . . 2000 . 3350 1400 2250 . . Upgrades 74 | 6 . . 7 . 5 2 7 10 6 . . 7 4 1 2 . 2 8 . . 1 . 3 1 2 . . Power Slot 2 | . . . . . . . . 1 . . . . . . 1 . . . . . . . . . . . . Propulsion Slot 5 | 1 . . . . . . . 1 . . . 1 . . . . . . . . . . . 1 1 . . Utility Slot 9 | 3 . . 2 . 2 1 . 1 . . . . . . . . . . . . . . . . . . . Weapon Slot 4 | . . . 1 . . . . . 1 . . 1 . 1 . . . . . . . . . . . . . Core Integrity 9 | . . . 2 . . . 2 2 . . . 1 . . . . . 2 . . . . . . . . . Heat Dissipation 12 | . . . . . . . . 3 . . . 2 . . 1 . . 6 . . . . . . . . . Matter Storage 2 | . . . . . . . . . 1 . . 1 . . . . . . . . . . . . . . . Inventory Capacity 9 | 2 . . 1 . 1 . 1 1 . . . . . . . . 1 . . . 1 . 1 . . . . Sight Range 1 | . . . . . . . . . . . . 1 . . . . . . . . . . . . . . . Sensor Range 1 | . . . . . . . . . . . . . 1 . . . . . . . . . . . . . . Ranged Accuracy 6 | . . . 1 . 1 . 2 . 1 . . . 1 . . . . . . . . . . . . . . Hack Attack % 3 | . . . . . 1 . . . . . . . . . . . 1 . . . . . 1 . . . . Hack Defense % 2 | . . . . . . 1 . . . . . . . . . . . . . . . . 1 . . . . KI Resistance % 3 | . . . . . . . 1 . . . . . 1 . . . . . . . . . . . 1 . . TH Resistance % 2 | . . . . . . . 1 . . . . . 1 . . . . . . . . . . . . . . KI Damage % 2 | . . . . . . . . . 2 . . . . . . . . . . . . . . . . . . TH Damage % 2 | . . . . . . . . 1 1 . . . . . . . . . . . . . . . . . . Protomatter Created 9672 | . 97 20 35 52 89 . 108 681 504 121 . 880 124 357 398 163 49 1185 364 526 . 585 683 542 1129 493 487 Integrity Restored 16877 | . 249 60 116 73 109 . 324 1951 1355 363 . 1045 366 939 981 199 82 1871 314 267 . 548 1103 956 1896 974 736 Core 11186 | . 226 60 73 39 63 . 324 1346 910 363 . 562 199 675 181 63 36 1139 242 174 . 399 784 686 1366 678 598 Parts 5691 | . 23 . 43 34 46 . . 605 445 . . 483 167 264 800 136 46 732 72 93 . 149 319 270 530 296 138 Protomatter Decayed 5628 | . . 91 185 140 50 . . 18 144 . 67 545 326 340 317 94 19 614 253 645 . 394 298 167 485 155 281 Game ------ Seed RecyclingDimensionalPlating Manual? 0 Play Time 06:52:58 Cumulative 127.2 hours Start 2023.11.05 @ 17:53:45 End 2023.11.09 @ 22:59:34 Sessions 15 Manual Loads 0 Difficulty Adventurer Special Mode Winter2019/RPGLIKE Game No. 48 Rogue 28 Adventurer 20 Explorer 0 Win Type - Total 5 Types 5/0/0/0/0/0/0/0/0 Lore% 59 Gallery% 66 Achievement% 53 Wizard Run 0 Options --------- ASCII 0 Keyboard 1 Movement Vi Keybinds 0 Fullscreen 2 Font 18/Terminus Map View 76x50 Tactical HUD 1 Map Filters NONE Filters NONE Steam X RUN: 9f67a701-377d-41ed-95c0-284119b27483